bitfinex-derivatives/quotes_ETHF0:USTF0_20250217
["timestamp","ask_amount","ask_price","bid_price","bid_amount"]
[1739757428568,3.6172,2680.2,2679.9,3.2078]
[1739757428872,3.6172,2680.2,2680.1,0.74613]
[1739757429177,3.6172,2680.2,2679.9,3.2078]
[1739757429378,4.36332,2680.2,2680.0,0.74615]
[1739757430779,4.36332,2680.2,2679.9,3.2078]
[1739757430780,3.6172,2680.2,2679.9,3.2078]
[1739757430982,0.74615,2680.1,2679.9,3.2078]
[1739757431180,0.74613,2680.1,2679.9,3.95397]
[1739757431682,4.36332,2680.2,2679.9,3.2078]
[1739757431873,0.74613,2680.1,2679.9,3.95397]
[1739757432276,0.74616,2680.0,2679.9,3.2078]
[1739757432786,0.74615,2680.1,2679.9,3.95398]
[1739757433084,3.6172,2680.2,2679.9,3.2078]
[1739757433386,0.74616,2680.0,2679.9,3.2078]
[1739757433787,0.74615,2680.1,2679.9,3.2078]
[1739757434089,3.6172,2680.2,2679.9,3.95398]
[1739757434292,3.6172,2680.2,2679.9,3.2078]
[1739757434478,4.36332,2680.2,2679.9,3.95396]
[1739757434684,4.36332,2680.2,2680.0,0.74614]
[1739757435589,3.6172,2680.2,2680.1,0.74613]
[1739757435987,4.36331,2680.2,2680.0,0.74615]
[1739757436887,0.74613,2680.1,2679.9,4.50317]
[1739757437081,0.74613,2680.1,2679.9,3.757]
[1739757437481,0.74613,2680.1,2679.9,4.50318]
[1739757437688,3.6172,2680.2,2679.9,3.2078]
[1739757437991,0.74616,2680.0,2679.9,3.2078]
[1739757439685,4.79884711,2680.1,2679.6,3.2078]
[1739757439891,0.74621,2679.8,2679.6,3.2078]
[1739757440093,3.5841,2679.7,2679.6,3.95405]
[1739757440592,3.5841,2679.7,2679.6,4.51305]
[1739757441287,2.458,2679.7,2679.6,4.51305]
[1739757441792,2.455,2679.7,2679.6,4.51307]
[1739757442394,2.456,2679.8,2679.7,0.74624]
[1739757443293,3.20221,2679.8,2679.7,0.74624]
[1739757443584,2.456,2679.8,2679.6,3.7668]
[1739757443790,3.20223,2679.8,2679.7,0.74624]
[1739757444091,2.456,2679.8,2679.7,0.74624]
[1739757445691,1.1115,2680.2,2680.1,0.74613]
[1739757445892,2.454,2680.2,2680.1,0.74613]
[1739757446490,3.2001,2680.2,2680.1,0.74613]
[1739757446792,2.454,2680.2,2680.1,0.74613]
[1739757447690,0.00559785,2680.3,2680.2,0.7461]
[1739757447895,2.45959785,2680.3,2680.2,0.7461]
[1739757448792,2.45959785,2680.3,2680.0,1.7027]
[1739757448793,2.45959785,2680.3,2680.1,0.7461]
[1739757449791,2.45959785,2680.3,2680.0,1.7027]
[1739757449994,2.45959785,2680.3,2680.2,0.7461]
[1739757450493,2.45959785,2680.3,2680.1,0.74613]
[1739757450994,0.74613,2680.1,2680.0,0.5909]
[1739757451192,0.5943,2680.2,2680.0,0.5909]
[1739757452296,0.5943,2680.2,2680.1,1.31793]
[1739757452687,0.5943,2680.2,2680.1,0.5718]
[1739757453297,0.5943,2680.2,2680.1,1.31793]
[1739757453694,2.45959785,2680.3,2680.2,0.7461]
[1739757455991,2.45659785,2680.3,2680.2,3.9539]
[1739757457990,0.00559785,2680.3,2680.2,3.9539]
[1739757459310,0.00559785,2680.3,2680.2,3.2078]
[1739757459487,0.00559785,2680.3,2680.2,3.9539]
[1739757461397,2.46059785,2680.3,2680.2,3.9539]
[1739757473306,3.61059785,2680.3,2680.2,3.9539]
[1739757474004,2.46059785,2680.3,2680.2,3.9539]
[1739757476802,3.03399785,2680.3,2680.2,3.9539]
[1739757479907,3.03399785,2680.3,2680.2,0.7461]
[1739757480107,3.03399785,2680.3,2680.2,3.9539]
[1739757483719,3.78006785,2680.3,2680.2,3.9539]
[1739757483911,3.78006785,2680.3,2680.2,3.2078]
[1739757485821,3.03399785,2680.3,2680.2,3.2078]
[1739757486020,3.78006785,2680.3,2680.2,3.2078]
[1739757486716,3.03399785,2680.3,2680.2,3.9539]
[1739757486921,0.57899785,2680.3,2680.2,3.9539]
[1739757487122,3.01899785,2680.3,2680.2,3.9539]
[1739757489828,2.44559785,2680.3,2680.2,3.9539]
[1739757492834,3.19166785,2680.3,2680.2,3.9539]
[1739757493131,2.44559785,2680.3,2680.2,3.9539]
[1739757493929,3.19166785,2680.3,2680.2,3.9539]
[1739757494432,2.44559785,2680.3,2680.2,3.9539]
[1739757494827,3.19166785,2680.3,2680.2,3.9539]
[1739757495230,2.44559785,2680.3,2680.2,3.9539]
[1739757499736,2.44559785,2680.3,2680.2,4.505]
[1739757506036,3.19166785,2680.3,2680.2,4.505]
[1739757506236,2.44559785,2680.3,2680.2,4.505]
[1739757507536,0.00559785,2680.3,2680.2,4.505]
[1739757517643,0.75166785,2680.3,2680.2,4.505]
[1739757517844,0.75166785,2680.3,2680.2,3.2078]
[1739757518047,0.75166785,2680.3,2680.2,3.9539]
[1739757519247,0.75166785,2680.3,2680.2,3.2078]
[1739757519947,2.42759785,2680.3,2679.8,4.3483]
[1739757520154,1.35285035,2680.2,2680.1,0.74611]
[1739757521349,1.35285035,2680.2,2680.1,3.95391]
[1739757521848,2.09895035,2680.2,2680.1,3.95393]
[1739757522653,1.35285035,2680.2,2680.1,3.95393]
[1739757524855,2.09895035,2680.2,2680.1,3.95393]
[1739757525354,1.35285035,2680.2,2680.1,3.95393]
[1739757525755,2.09895035,2680.2,2680.1,3.95393]
[1739757526466,1.35285035,2680.2,2680.1,3.2078]
[1739757526649,1.35285035,2680.2,2680.1,3.95393]
[1739757526845,2.09895035,2680.2,2680.1,3.95393]
[1739757527050,2.09895035,2680.2,2680.1,3.2078]
[1739757527457,2.09895035,2680.2,2679.8,1.1431]
[1739757527458,0.74616,2680.1,2679.8,4.3509]
[1739757527655,1.91525035,2680.0,2679.8,4.3509]
[1739757527851,1.91525035,2680.0,2679.9,0.74619]
[1739757528060,5.08441035,2680.0,2679.9,0.74619]
[1739757528461,5.08441035,2680.0,2679.8,4.3509]
[1739757528760,4.33825035,2680.0,2679.9,0.74619]
[1739757528960,2.9854,2680.0,2679.9,0.74619]
[1739757530056,2.9854,2680.0,2679.8,3.2078]
[1739757530254,5.08443035,2680.0,2679.8,3.954]
[1739757531252,5.08443035,2680.0,2679.8,3.2078]
[1739757531955,0.74619,2679.9,2679.8,3.95399]
[1739757532460,5.08442035,2680.0,2679.8,3.95399]
[1739757533463,4.33825035,2680.0,2679.8,3.95399]
[1739757533662,4.33825035,2680.0,2679.8,3.2078]
[1739757533861,0.74619,2679.9,2679.8,3.95401]
[1739757534562,5.08443035,2680.0,2679.8,3.2078]
[1739757534762,5.08441035,2680.0,2679.9,0.74619]
[1739757535062,4.33825035,2680.0,2679.9,0.74619]
[1739757535363,5.08443035,2680.0,2679.8,3.954]
[1739757536367,5.08443035,2680.0,2679.9,0.74619]
[1739757536666,5.08443035,2680.0,2679.8,3.95399]
[1739757536863,0.74619,2679.9,2679.8,3.95399]
[1739757537866,5.08443035,2680.0,2679.8,3.95399]
[1739757538363,4.33825035,2680.0,2679.8,3.95399]
[1739757538563,0.74619,2679.9,2679.8,3.95399]
[1739757539568,0.74619,2679.9,2679.8,3.95401]
[1739757541766,9.41147035,2680.0,2679.5,3.21339785]
[1739757542066,2.09912035,2679.6,2679.5,3.21339785]
[1739757542260,4.52212035,2679.6,2679.5,3.21339785]
[1739757542464,3.77585035,2679.6,2679.5,3.95969785]
[1739757543068,4.32095035,2679.6,2679.5,3.95969785]
[1739757543865,3.77585035,2679.6,2679.5,3.95969785]
[1739757544963,3.77585035,2679.6,2679.5,3.21339785]
[1739757545171,3.77585035,2679.6,2679.5,3.95969785]
[1739757547666,2.423,2679.6,2679.5,3.95969785]
[1739757549674,3.16927,2679.6,2679.5,3.95969785]
[1739757549867,2.423,2679.6,2679.5,3.95969785]
[1739757550467,3.16927,2679.6,2679.5,3.95969785]
[1739757550667,2.423,2679.6,2679.5,3.95969785]
[1739757551774,3.16927,2679.6,2679.5,3.95969785]
[1739757552170,2.423,2679.6,2679.5,3.95969785]
[1739757552969,2.423,2679.6,2679.5,3.21339785]
[1739757553171,3.16927,2679.6,2679.5,3.95969785]
[1739757554174,0.5602,2679.7,2679.5,3.95969785]
[1739757554377,0.00559785,2680.3,2679.6,1.86568]
[1739757554676,0.00559785,2680.3,2679.9,3.2078]
[1739757554677,2.423,2680.2,2679.9,3.2078]
[1739757554874,2.09901035,2680.0,2679.9,3.2078]
[1739757555370,2.67601035,2680.0,2679.9,3.2078]
[1739757556182,0.74621,2679.8,2679.7,1.1801]
[1739757556370,3.16921,2679.8,2679.7,1.1801]
[1739757556773,2.423,2679.8,2679.7,1.1801]
[1739757556979,2.423,2679.8,2679.7,1.92634]
[1739757558072,0.577,2680.0,2679.7,1.1801]
[1739757558272,2.423,2679.9,2679.8,0.74621]
[1739757558583,3.1692,2679.9,2679.7,1.92632]
[1739757559081,0.577,2680.0,2679.7,1.1801]
[1739757559378,2.423,2679.9,2679.8,2.09906035]
[1739757559580,0.00559785,2680.3,2680.2,0.7461]
[1739757559783,2.42859785,2680.3,2680.2,0.7461]
[1739757563384,2.42759785,2680.3,2680.2,0.7461]
[1739757563978,2.42759785,2680.3,2680.1,1.7437]
[1739757564178,3.17367785,2680.3,2680.1,2.48981]
[1739757564480,3.17367785,2680.3,2680.1,1.172]
[1739757564481,2.42759785,2680.3,2680.1,1.172]
[1739757564781,1.2993,2680.2,2680.1,1.172]
[1739757564977,1.8817,2680.2,2680.1,1.172]
[1739757565785,1.8817,2680.2,2680.1,0.5835]
[1739757565993,3.23455035,2680.2,2680.1,0.5835]
[1739757566683,0.74613,2680.1,2680.0,3.2078]
[1739757568480,0.74624,2679.7,2679.6,1.1183]
[1739757568781,3.16824,2679.7,2679.6,0.569]
[1739757568992,2.422,2679.7,2679.6,2.66812035]
[1739757569380,2.422,2679.7,2679.6,3.21522035]
[1739757570981,3.2078,2680.1,2679.6,2.46895035]
[1739757571185,3.2078,2680.1,2679.8,0.7462]
[1739757571186,3.16817,2680.0,2679.8,0.7462]
[1739757571691,3.16817,2680.0,2679.9,0.5879]
[1739757573483,3.16816,2680.0,2679.9,0.5879]
[1739757573994,2.422,2680.0,2679.9,1.33409]
[1739757574293,0.74619,2679.9,2679.7,0.74622]
[1739757574486,0.74619,2679.9,2679.7,1.34052]
[1739757574686,0.5427,2679.8,2679.7,1.34052]
[1739757575092,0.5427,2679.8,2679.7,1.34054]
[1739757577586,1.28891,2679.8,2679.7,0.5943]
[1739757577785,1.28891,2679.8,2679.7,1.34054]
[1739757578188,1.28891,2679.8,2679.7,0.5943]
[1739757579091,0.5427,2679.8,2679.7,0.5943]
[1739757579398,1.28891,2679.8,2679.7,0.5943]
[1739757579693,1.86111,2679.8,2679.7,0.5943]
[1739757580398,1.1149,2679.8,2679.7,1.34054]
[1739757581698,1.86111,2679.8,2679.7,1.34054]
[1739757583001,1.1149,2679.8,2679.7,1.34054]
[1739757583502,1.1149,2679.8,2679.7,0.5943]
[1739757583800,1.1149,2679.8,2679.7,1.34054]
[1739757586506,1.86111,2679.8,2679.7,1.34054]
[1739757586800,1.1149,2679.8,2679.7,1.34054]
[1739757587399,1.86111,2679.8,2679.7,1.34054]
[1739757587598,1.1149,2679.8,2679.7,1.34054]
[1739757588905,1.86111,2679.8,2679.7,1.34054]
[1739757589208,1.1149,2679.8,2679.7,1.34054]
[1739757592306,1.86111,2679.8,2679.7,1.34054]
[1739757593209,1.1149,2679.8,2679.7,1.34054]
[1739757594601,3.21396035,2679.8,2679.7,0.5943]
[1739757594801,3.21396035,2679.8,2679.6,0.569]
[1739757594802,0.74624,2679.7,2679.6,0.569]
[1739757595102,0.74624,2679.7,2679.5,0.58649785]
[1739757595306,2.422,2679.6,2679.5,1.33278785]
[1739757597008,3.16827,2679.6,2679.5,1.33279785]
[1739757597807,2.422,2679.6,2679.5,1.33279785]
[1739757601209,3.16827,2679.6,2679.5,0.58649785]
[1739757601412,2.422,2679.6,2679.5,0.58649785]
[1739757601615,4.52112035,2679.6,2679.5,0.58649785]
[1739757601812,4.52112035,2679.6,2679.5,0.00559785]
[1739757602309,0.74644,2679.0,2678.9,1.138]
[1739757602515,4.52129035,2679.0,2678.9,1.138]
[1739757602906,3.77485035,2679.0,2678.9,1.138]
[1739757603109,3.77485035,2679.0,2678.9,1.88446]
[1739757603110,2.422,2679.0,2678.9,1.88446]
[1739757603510,2.422,2679.0,2678.9,1.138]
[1739757603709,2.422,2679.0,2678.9,2.42846]
[1739757605307,4.56065035,2679.6,2679.5,0.7463]
[1739757605509,3.2078,2679.6,2679.5,0.7463]
[1739757605717,1.35285035,2679.8,2679.7,0.74624]
[1739757606011,3.77485035,2679.8,2679.4,4.9169]
[1739757606312,3.77485035,2679.8,2679.4,2.4554]
[1739757606313,1.35285035,2679.6,2679.4,2.4554]
[1739757606511,1.35285035,2679.6,2679.4,1.87812]
[1739757606710,0.5486,2679.5,2679.4,1.87812]
[1739757607414,0.5486,2679.5,2679.4,5.08592]
[1739757607609,0.5933,2679.7,2679.6,0.74627]
[1739757607814,3.77485035,2679.8,2679.7,0.74624]
[1739757608110,3.77485035,2679.8,2679.6,0.74625]
[1739757608111,4.52107035,2679.8,2679.6,0.74625]
[1739757608310,3.77485035,2679.8,2679.7,0.74624]
[1739757608707,2.422,2679.8,2679.5,0.5773]
[1739757608911,2.422,2679.8,2679.6,0.74625]
[1739757609213,2.422,2679.8,2679.5,0.5773]
[1739757609517,2.422,2679.8,2679.7,0.74624]
[1739757609710,2.422,2679.8,2679.5,0.5773]
[1739757609915,2.422,2679.8,2679.4,4.3396]
[1739757610117,2.93307736,2679.7,2679.1,0.5669]
[1739757610309,3.2078,2679.6,2679.1,0.5994]
[1739757610510,0.74636,2679.3,2679.0,0.74641]
[1739757610708,3.0172,2679.2,2678.9,1.1817]
[1739757610923,1.31932,2679.1,2678.9,1.92816]
[1739757611114,1.31932,2679.1,2678.9,1.1817]
[1739757611817,1.31932,2679.1,2678.8,0.74647]
[1739757612616,0.5729,2679.1,2678.7,4.32319785]
[1739757612811,0.5729,2679.1,2679.0,0.74644]
[1739757614219,0.5729,2679.1,2678.7,4.32319785]
[1739757614415,0.5729,2679.1,2679.0,0.74644]
[1739757614618,2.422,2679.1,2678.7,4.32319785]
[1739757614814,2.422,2679.1,2679.0,0.74644]
[1739757616322,3.2078,2679.3,2678.8,2.93307736]
[1739757616528,2.422,2679.2,2679.1,0.74641]
[1739757616727,0.5856,2679.6,2679.4,0.74631]
[1739757616920,2.422,2679.5,2679.4,0.74631]
[1739757617621,2.422,2679.5,2679.3,3.2078]
[1739757617622,0.5856,2679.6,2679.5,0.7463]
[1739757617816,2.422,2679.6,2679.5,0.7463]
[1739757618029,3.7977,2679.9,2679.8,0.74621]
[1739757618225,6.2197,2679.9,2679.8,0.74621]
[1739757621121,44.0078,2680.2,2680.0,0.74615]
[1739757621327,2.9794,2680.1,2680.0,0.74615]
[1739757623027,2.9794,2680.1,2679.9,0.74617]
[1739757623234,3.72553,2680.1,2679.9,0.74617]
[1739757623734,3.72553,2680.1,2679.8,0.589]
[1739757623930,3.67924736,2680.0,2679.7,0.583]
[1739757624130,0.7462,2679.9,2679.6,3.95406]
[1739757624334,2.93307736,2679.7,2679.3,3.2078]
[1739757624537,3.76738,2679.6,2679.3,3.95413]
[1739757625232,3.76738,2679.6,2679.4,0.74632]
[1739757625435,3.76738,2679.6,2679.3,3.95414]
[1739757625634,3.0211,2679.6,2679.4,0.74631]
[1739757625835,3.76738,2679.6,2679.4,0.74631]
[1739757626534,3.76738,2679.6,2679.4,0.74632]
[1739757627728,3.0211,2679.6,2679.3,3.2078]
[1739757628035,0.5991,2679.6,2679.5,0.7463]
[1739757628244,3.0211,2679.6,2679.5,0.7463]
[1739757628543,2.422,2679.7,2679.6,0.74627]
[1739757628740,2.422,2679.7,2679.6,3.95407]
[1739757632746,2.422,2679.7,2679.6,0.74627]
[1739757633146,5.35507736,2679.7,2679.4,1.1245]
[1739757633347,1.91319,2679.6,2679.3,3.2078]
[1739757633537,1.722,2679.6,2679.3,3.2078]
[1739757633842,0.7463,2679.5,2679.3,3.2078]
[1739757634442,0.74632,2679.5,2679.3,3.2078]
[1739757634838,1.722,2679.6,2679.3,3.2078]
[1739757635744,0.74631,2679.5,2679.3,3.2078]
[1739757635939,0.74631,2679.5,2679.3,3.95414]
[1739757637143,0.74631,2679.5,2679.3,3.2078]
[1739757637345,0.74631,2679.5,2679.3,3.95415]
[1739757637545,0.74631,2679.5,2679.3,3.2078]
[1739757637745,0.74633,2679.4,2679.3,3.2078]
[1739757638344,1.722,2679.6,2679.3,3.2078]
[1739757638546,2.46828,2679.6,2679.3,3.95413]
[1739757638746,1.722,2679.6,2679.4,0.74632]
[1739757638943,1.1669,2679.6,2679.4,1.1926]
[1739757639145,1.1669,2679.6,2679.4,1.93892]
[1739757639346,1.1669,2679.6,2679.5,0.7463]
[1739757640144,0.5867,2679.9,2679.6,0.74626]
[1739757640446,3.0091,2679.8,2679.6,0.74624]
[1739757640750,3.75532,2679.8,2679.6,0.74624]
[1739757641151,2.422,2679.8,2679.7,0.74624]
[1739757642844,2.422,2679.8,2679.4,1.7527]
[1739757643042,2.9846,2679.8,2679.4,1.7527]
[1739757643253,2.9846,2679.8,2679.5,0.74627]
[1739757643653,3.73081,2679.8,2679.6,0.74627]
[1739757643951,2.9846,2679.8,2679.6,0.74627]
[1739757644154,2.9846,2679.8,2679.4,1.7527]
[1739757644454,2.9846,2679.8,2679.7,0.74624]
[1739757646852,40.8,2680.0,2679.6,3.2078]
[1739757647053,2.422,2680.1,2680.0,0.74616]
[1739757647257,0.00559785,2680.3,2680.2,0.7461]
[1739757647454,2.42759785,2680.3,2680.2,0.7461]
[1739757647755,0.00559785,2680.3,2680.2,3.9539]
[1739757659658,6.48727736,2681.0,2680.9,0.74591]
[1739757659860,3.5542,2681.0,2680.9,0.74591]
[1739757661879,0.5557,2681.0,2680.9,0.74591]
[1739757662162,0.00559785,2681.2,2680.9,0.74591]
[1739757662163,0.00559785,2681.2,2681.1,0.74585]
[1739757662468,3.17141785,2681.2,2681.1,0.74585]
[1739757662963,0.00559785,2681.2,2681.1,0.74585]
[1739757671164,0.00559785,2681.2,2680.9,3.2078]
[1739757671369,2.93867521,2681.2,2680.7,0.00559785]
[1739757671671,2.93307736,2680.9,2680.7,0.00559785]
[1739757671873,1.1669,2680.8,2680.7,0.75155785]
[1739757672374,1.1669,2680.8,2680.7,0.00559785]
[1739757672575,1.1669,2680.8,2680.7,0.75155785]
[1739757673171,0.5885,2680.8,2680.7,0.75155785]
[1739757675673,1.33443,2680.8,2680.7,0.00559785]
[1739757676769,0.5885,2680.8,2680.1,3.7729]
[1739757676967,0.74602,2680.5,2680.1,3.2078]
[1739757677168,3.5496,2680.4,2680.2,0.74608]
[1739757677380,3.5496,2680.4,2680.3,0.74607]
[1739757680084,2.9817,2680.4,2680.3,0.74607]
[1739757680676,2.9817,2680.4,2680.3,1.29467]
[1739757681483,0.74607,2680.3,2680.1,3.95950785]
[1739757681683,1.30137,2680.3,2680.1,3.95950785]
[1739757682079,0.5553,2680.3,2680.1,3.21339785]
[1739757682286,1.3014,2680.3,2680.1,3.95950785]
[1739757682579,1.3014,2680.3,2680.2,0.7461]
[1739757682776,0.5553,2680.3,2680.2,0.7461]
[1739757683372,1.30139,2680.3,2680.1,3.95950785]
[1739757683584,1.30139,2680.3,2680.1,3.95951785]
[1739757683975,0.7461,2680.2,2680.1,0.00559785]
[1739757685285,3.9539,2680.2,2680.1,0.00559785]
[1739757685783,9.9539,2680.2,2680.1,0.00559785]
[1739757685979,9.2078,2680.2,2679.7,3.2078]
[1739757686177,2.93307736,2680.0,2679.8,0.7462]
[1739757686379,2.9869,2679.9,2679.7,3.2078]
[1739757686578,3.7331,2679.9,2679.7,3.2078]
[1739757686781,44.5331,2679.9,2679.7,3.2078]
[1739757686986,0.5552,2679.8,2679.7,3.2078]
[1739757687181,1.30141,2679.8,2679.7,3.2078]
[1739757687486,0.5552,2679.8,2679.7,3.2078]
[1739757688787,1.30141,2679.8,2679.7,3.2078]
[1739757690276,0.5552,2679.8,2679.7,3.2078]
[1739757690584,1.30141,2679.8,2679.7,3.2078]
[1739757691985,1.30141,2679.8,2679.6,0.74626]
[1739757692385,0.5669,2679.9,2679.5,0.00559785]
[1739757692597,2.42,2680.5,2679.8,3.2078]
[1739757692888,2.42,2680.5,2679.6,4.79875736]
[1739757692889,3.16603,2680.5,2680.2,0.7461]
[1739757693095,0.74606,2680.4,2680.1,3.2078]
[1739757693394,6.09911736,2680.5,2680.1,3.95392]
[1739757693592,5.35307736,2680.5,2680.1,3.95392]
[1739757693894,5.35307736,2680.5,2680.1,3.2078]
[1739757694087,2.42,2680.5,2680.4,0.74605]
[1739757694592,3.2078,2680.9,2680.6,0.74597]
[1739757694894,2.42,2680.8,2680.7,0.5496]
[1739757696086,0.55379785,2681.2,2680.7,0.5496]
[1739757696299,2.42,2681.1,2681.0,0.74586]
[1739757696595,0.00559785,2681.2,2681.1,0.74585]
[1739757696795,2.42559785,2681.2,2681.1,0.74585]
[1739757698095,0.00559785,2681.2,2681.1,0.74585]
[1739757706400,2.419,2681.6,2681.3,0.7458]
[1739757706607,2.419,2681.6,2681.5,3.95354]
[1739757707504,2.42459785,2681.8,2681.7,0.74568]
[1739757710602,0.00559785,2681.8,2681.7,0.74568]
[1739757718812,0.00559785,2681.8,2681.7,3.67875736]
[1739757720513,0.00559785,2681.8,2681.7,0.74568]
[1739757724910,2.42359785,2681.8,2681.5,3.2078]
[1739757725103,2.42359785,2681.8,2681.7,0.74568]
[1739757727111,3.16925785,2681.8,2681.7,0.74568]
[1739757727311,2.42359785,2681.8,2681.7,0.74568]
[1739757732220,0.7458,2681.3,2681.2,3.2078]
[1739757732516,2.418,2681.3,2681.2,3.95362]
[1739757735418,2.418,2681.3,2681.2,3.2078]
[1739757735616,2.418,2681.3,2681.2,3.95362]
[1739757737017,3.1638,2681.3,2681.2,3.2078]
[1739757737825,0.74586,2681.1,2680.9,3.95928785]
[1739757738024,0.5766,2681.0,2680.9,3.95928785]
[1739757738323,1.1657,2681.0,2680.9,3.95928785]
[1739757738525,1.1657,2681.0,2680.9,3.21339785]
[1739757738718,1.91158,2681.0,2680.9,3.21339785]
[1739757739925,1.1657,2681.0,2680.9,3.95930785]
[1739757740227,0.5891,2681.0,2680.9,3.95930785]
[1739757740923,0.74575,2681.5,2681.3,0.7458]
[1739757741122,2.419,2681.4,2681.3,0.7458]
[1739757741321,2.419,2681.4,2681.1,0.5508]
[1739757741522,0.74582,2681.2,2681.0,1.33297]
[1739757741722,0.74582,2681.3,2681.0,1.33297]
[1739757741922,0.5739,2681.2,2681.0,1.33297]
[1739757742125,0.5739,2681.2,2681.1,0.74585]
[1739757745630,0.74586,2681.1,2680.9,3.95928785]
[1739757745829,2.419,2681.0,2680.9,3.95928785]
[1739757746921,3.16488,2681.0,2680.9,3.21339785]
[1739757749331,3.16488,2681.0,2680.9,0.00559785]
[1739757750424,43.96488,2681.0,2680.9,0.00559785]
[1739757750624,46.4268,2681.0,2680.4,0.581]
[1739757750826,46.4268,2681.0,2680.2,3.7763]
[1739757750827,2.93307736,2680.8,2680.2,3.2078]
[1739757751030,0.74607,2680.3,2680.2,3.2078]
[1739757751733,0.5603,2680.3,2680.2,3.2078]
[1739757752725,1.30637,2680.3,2680.2,3.2078]
[1739757754126,0.5603,2680.3,2680.0,0.00559785]
[1739757754337,3.67920736,2680.1,2680.0,0.00559785]
[1739757754835,4.23860736,2680.1,2680.0,0.00559785]
[1739757759333,3.16513,2680.1,2680.0,0.00559785]
[1739757759637,2.419,2680.1,2680.0,0.00559785]
[1739757759935,3.16513,2680.1,2680.0,0.00559785]
[1739757760334,3.7681,2680.3,2680.0,0.00559785]
[1739757760535,3.2078,2680.3,2680.2,0.7461]
[1739757760736,2.419,2680.2,2680.1,1.31833]
[1739757761326,0.00559785,2680.4,2680.3,0.74607]
[1739757761525,2.42459785,2680.4,2680.3,0.74607]
[1739757761740,0.00559785,2680.4,2680.3,0.74607]
[1739757768238,0.00559785,2680.4,2680.2,3.2078]
[1739757768440,0.75164785,2680.4,2680.2,3.95388]
[1739757768840,0.75164785,2680.4,2680.3,0.74607]
[1739757769543,0.00559785,2680.4,2680.3,0.74607]
[1739757769741,0.75164785,2680.4,2680.3,0.74607]
[1739757770642,0.00559785,2680.4,2680.3,0.74607]
[1739757771038,0.75164785,2680.4,2680.3,0.74607]
[1739757771934,0.75164785,2680.4,2680.3,3.2078]
[1739757772338,0.7461,2680.3,2680.1,0.5722]
[1739757772544,0.7461,2680.3,2680.2,0.7461]
[1739757772741,0.7461,2680.2,2680.1,1.31833]
[1739757772942,0.74613,2680.1,2680.0,0.00559785]
[1739757773139,6.69460736,2680.1,2680.0,0.00559785]
[1739757775841,3.76153,2680.1,2680.0,0.00559785]
[1739757778642,5.94847736,2680.1,2679.7,3.2078]
[1739757778843,0.74621,2679.8,2679.7,3.2078]
[1739757779145,3.67928736,2679.8,2679.7,3.2078]
[1739757779449,3.67928736,2679.8,2679.4,1.1807]
[1739757779450,0.7463,2679.5,2679.4,4.3885]
[1739757779649,3.1663,2679.5,2679.4,4.3885]
[1739757780847,2.42,2679.5,2679.4,5.13482]
[1739757782349,2.42,2679.7,2679.4,4.3885]
[1739757782550,2.42,2679.7,2679.6,0.74627]
[1739757783446,2.42,2679.7,2679.4,4.3885]
[1739757783846,2.42,2679.7,2679.6,0.74627]
[1739757786051,0.5704,2680.1,2679.4,4.3885]
[1739757786352,2.93867521,2680.4,2680.0,0.74616]
[1739757786554,2.42,2680.3,2680.1,1.1527]
[1739757786749,0.00559785,2680.4,2680.1,4.3605]
[1739757786954,0.00559785,2680.4,2680.3,0.74607]
[1739757787261,2.42559785,2680.4,2680.3,0.74607]
[1739757787748,0.00559785,2680.4,2680.3,0.74607]
[1739757792753,42.12375,2681.2,2680.9,0.7459]
[1739757793053,2.419,2681.1,2680.9,0.7459]
[1739757793356,1.32374,2681.2,2681.0,0.5713]
[1739757793557,2.419,2681.1,2681.0,1.31718]
[1739757793755,2.419,2681.1,2681.0,3.7791]
[1739757794052,2.419,2681.1,2681.0,4.52498]
[1739757794961,2.42459785,2681.3,2681.2,0.74582]
[1739757798454,0.00559785,2681.3,2681.2,0.74582]
[1739757798663,2.42459785,2681.3,2681.2,0.74582]
[1739757800858,0.00559785,2681.3,2681.2,0.74582]
[1739757801065,2.419,2681.7,2681.6,0.74571]
[1739757801357,2.419,2681.8,2681.7,0.74567]
[1739757801761,2.419,2681.8,2681.7,0.74568]
[1739757801957,3.16466,2681.8,2681.7,0.74568]
[1739757802160,2.419,2681.8,2681.7,0.74568]
[1739757802757,3.16466,2681.8,2681.7,0.74568]
[1739757803367,2.419,2681.8,2681.7,0.74568]
[1739757803962,3.16467,2681.8,2681.6,0.74569]
[1739757804158,3.16467,2681.8,2681.7,0.74568]
[1739757804665,3.16467,2681.8,2681.5,3.7528]
[1739757804861,3.16467,2681.8,2681.6,0.74569]
[1739757805061,3.16467,2681.8,2681.5,3.7528]
[1739757805367,0.7457,2681.7,2681.5,3.95352]
[1739757805560,0.5534,2681.7,2681.6,0.74571]
[1739757805866,0.74571,2681.6,2681.5,3.2078]
[1739757806066,1.89241,2681.6,2681.5,3.2078]
[1739757806267,1.1467,2681.6,2681.2,3.2078]
[1739757806468,0.74574,2681.5,2681.2,3.95361]
[1739757806663,2.418,2681.4,2681.2,3.2078]
[1739757806970,2.418,2681.4,2681.3,0.7458]
[1739757810969,2.418,2681.4,2681.2,3.2078]
[1739757811165,2.418,2681.4,2681.3,0.7458]
[1739757813572,2.981,2681.4,2681.3,0.7458]
[1739757814871,0.563,2681.4,2681.3,0.7458]
[1739757815071,2.418,2681.5,2681.4,0.74577]
[1739757815571,3.16369,2681.7,2681.3,0.7458]
[1739757815871,0.572,2681.8,2681.7,0.74569]
[1739757816172,2.99,2681.8,2681.7,0.74569]
[1739757816367,3.73566,2681.8,2681.6,0.5529]
[1739757816570,3.73566,2681.8,2681.6,1.2986]